[Event "4th Tata Steel India Blitz Women 2022"]
[Site "Kolkota"]
[Date "2022.12.04"]
[Round "13.2"]
[White "Savitha Shri B"]
[Black "Muzychuk, Mariya"]
[Result "0-1"]
[ECO "B40"]
[WhiteElo "2411"]
[BlackElo "2528"]
[Annotator "TA"]
[PlyCount "104"]
[EventDate "2022.11.29"]
[EventType "tourn"]
[EventCountry "IND"]
[SourceTitle "playchess.com"]
[Source "ChessBase"]
[SourceQuality "1"]
[TimeControl "180+2"]

{[%evp 17,104,0,0,0,9,-18,-22,-26,-22,-25,-23,-62,-62,-51,-43,-46,-52,-66,-67,-72,-10,-17,-22,-85,-62,-62,-62,-88,-83,-80,-79,-229,-123,-325,-325,-325,-317,-527,-325,-318,-322,-322,-207,-323,-314,-295,-227,-300,-275,-347,-347,-506,-436,-604,-225,-604,-604,-589,-378,-12843,-12843,-12839,-12840,-8201,-443,-29970,-29972,-29976,-29977,-29977,-459,-5057,0,-29976,-29976,-29981,-29982,-29982,-29978,-29978,-29979,-29985,-29986,-29986,-29986,-29988,-29989,-29989,-29985]} 1. e4 {[%emt 0:00:01]} c5 {[%emt 0:00:00]} 2. Nf3 {[%emt 0:00:02]} e6 {[%emt 0:00:00]} 3. d4 {[%emt 0:00:01]} cxd4 {[%emt 0:00:01]} 4. Nxd4 {[%emt 0:00:00]} Nf6 {[%emt 0:00:01]} 5. Bd3 {[%emt 0:00:13]} Nc6 {[%emt 0:00:01]} 6. Nxc6 {[%emt 0:00:09]} bxc6 {[%emt 0:00:01]} 7. O-O {[%emt 0:00:16]} d5 {[%emt 0:00:01]} 8. exd5 {[%emt 0:00:22]} cxd5 {[%emt 0:00:06]} 9. c4 {[%emt 0:00:18]} Be7 {[%emt 0:00:09]} 10. cxd5 {[%emt 0:00:08] B40: Sicilian: 2...e6, Unusual lines.} Nxd5 {[%emt 0:00:09]} 11. Bb5+ {[%emt 0:00:27]} Bd7 {[%emt 0:00:02]} 12. Bxd7+ {[%emt 0:00:15] The position is equal.} Qxd7 {[%emt 0:00:01]} 13. Nc3 {[%emt 0:00:00]} Nxc3 {[%emt 0:00:10]} 14. Qxd7+ Kxd7 {[%emt 0:00:01]} 15. bxc3 {[%emt 0:00:02]} Rhc8 {[%emt 0:00:10][%cal Oe7f6] [#]} 16. Be3 $146 {[%emt 0:00:09]} ({Predecessor:} 16. Bd2 Bf6 17. Rfc1 Rab8 18. Rc2 Rb7 19. Kf1 Rbc7 20. Rac1 Rc4 21. Ke2 Bd4 22. Be3 Bxe3 23. Kxe3 {0-1 (52) Kardzovic,D (2060)-Cvetkovic,D (2103) Serbia 2011}) 16... Bf6 {[%emt 0:00:22]} 17. Rab1 {[%emt 0:00:06]} Rc7 {[%emt 0:00:19] Inhibits Rb7.} 18. c4 {[%emt 0:00:30][%cal Bc3c4,Bc4c5][%mdl 32]} Rac8 {[%emt 0:00:37]} (18... Rxc4 $17 19. g3 Ra4) 19. c5 {[%emt 0:00:01]} (19. Rfc1 {simplifies} Rxc4 20. Rb7+ R4c7 21. Rcxc7+ Rxc7 22. Rxa7 Rxa7 23. Bxa7 Kc6 24. Kf1) 19... Be7 {[%emt 0:00:06]} 20. Bd4 {[%emt 0:00:21]} (20. Bf4 $11 {remains equal.}) 20... f6 {[%emt 0:00:08]} 21. Rfd1 {[%emt 0:00:05]} Ke8 {[%emt 0:00:07]} 22. c6 {[%emt 0:00:04] White is on the road to losing.} a6 {[%emt 0:00:12]} 23. h4 {[%emt 0:00:10]} Rxc6 {[%emt 0:00:04]} 24. Rb2 {[%emt 0:00:05]} (24. Be3 $17 {keeps fighting.}) 24... Rc2 {[%emt 0:00:08]} (24... Rd8 $19 {aiming for ...e5.} 25. Rdd2 Rc1+ 26. Kh2 Rc4) 25. Rd2 $2 {[%emt 0:00:03] Inhibits e5.} (25. Rb6 $17) 25... Rxd2 $19 {[%emt 0:00:07]} 26. Rxd2 {[%emt 0:00:01][%mdl 4096] Endgame KRB-KRB} Rd8 $1 {[%emt 0:00:07] ...Bb4 is the strong threat.} 27. Kf1 $2 {[%emt 0:00:04]} (27. Bc3 Rxd2 28. Bxd2) 27... e5 {[%emt 0:00:01]} 28. Be3 {[%emt 0:00:01]} Rxd2 29. Bxd2 {[%emt 0:00:01] KB-KB} Kd7 {[%emt 0:00:02]} 30. Ke2 {[%emt 0:00:00]} (30. g4 {was forced.}) 30... Ke6 {[%emt 0:00:01]} 31. Kd3 {[%emt 0:00:01]} Kd5 {[%emt 0:00:01]} 32. f3 {[%emt 0:00:02]} f5 {[%emt 0:00:06]} 33. h5 {[%emt 0:00:00]} g6 {[%emt 0:00:09]} 34. hxg6 {[%emt 0:00:01]} (34. Be1 $142 gxh5 35. Ke3) 34... hxg6 {[%emt 0:00:01]} 35. Bc3 {[%emt 0:00:04]} Bc5 $2 {[%emt 0:00:03]} (35... e4+ 36. fxe4+ fxe4+ 37. Ke2 Bd8) 36. Bb2 $2 {[%emt 0:00:04]} (36. Ba5) 36... Bd4 {[%emt 0:00:03]} 37. Ba3 {[%emt 0:00:01]} e4+ {[%emt 0:00:03]} 38. fxe4+ $2 {[%emt 0:00:01]} (38. Ke2 Ke5 39. Bf8) 38... fxe4+ 39. Ke2 {[%emt 0:00:03]} Kc4 {[%emt 0:00:02]} 40. Be7 {[%emt 0:00:02]} Kc3 {[%emt 0:00:03] And now ...a5 would win.} 41. g4 {[%emt 0:00:04]} (41. Bg5 $19) 41... a5 {[%emt 0:00:05][%cal Ba6a5,Ba5a4][%mdl 32]} 42. Bd8 {[%emt 0:00:02]} a4 {[%emt 0:00:01]} 43. Be7 {[%emt 0:00:03]} Kc4 {[%emt 0:00:04]} (43... Kb2 $142 44. Kd1 Kxa2 45. Kc2 e3 46. g5 Bb2 47. Bc5 e2 48. Bf2 {[#]} Bd4 $1 {[%mdl 512]} 49. Be1 a3 50. Bg3 Be5 $1 {[%mdl 512]} 51. Bf2 Bf4 52. Bh4 Bd6 53. Be1 Bc7 54. Bh4 Ba5 55. Bf2 e1=Q 56. Bxe1 Bxe1 57. Kd1 Bc3 58. Kc2 Bb4 59. Kc1 Kb3 60. Kd1 a2 61. Ke2 a1=Q 62. Kf2 Qe1+ 63. Kg2 Qe2+ 64. Kg3 Bd6+ 65. Kh3 Qf3+ 66. Kh4 Qh5#) 44. Bf8 {[%emt 0:00:03]} (44. g5 $142) 44... Kc3 {[%emt 0:00:05]} (44... e3 $19 45. Ba3 Kc3) 45. Be7 $1 {[%emt 0:00:03]} Kb2 {[%emt 0:00:01] Black mates.} 46. a3 Kb3 {[%emt 0:00:02]} 47. g5 {[%emt 0:00:03]} Kc4 {[%emt 0:00:02]} 48. Bf8 {[%emt 0:00:01]} Bc5 {[%emt 0:00:05]} 49. Bg7 {[%emt 0:00:03]} Bxa3 {[%emt 0:00:03]} 50. Ke3 Kd5 {[%emt 0:00:00]} 51. Ba1 {[%emt 0:00:01]} Bc5+ {[%emt 0:00:01]} 52. Ke2 {[%emt 0:00:01]} Be7 {[%emt 0:00:03] Weighted Error Value: White=0.75/Black=0.55} 0-1

[Event "4th Tata Steel India Blitz Women 2022"]
[Site "Kolkota"]
[Date "2022.12.04"]
[Round "13.3"]
[White "Kiolbasa, Oliwia"]
[Black "Kulkarni Bhakti"]
[Result "1-0"]
[ECO "B07"]
[WhiteElo "2406"]
[BlackElo "2359"]
[Annotator "TA"]
[PlyCount "81"]
[EventDate "2022.11.29"]
[EventType "tourn"]
[EventCountry "IND"]
[SourceTitle "playchess.com"]
[Source "ChessBase"]
[SourceQuality "1"]
[TimeControl "180+2"]

{[%evp 12,81,44,36,41,35,44,45,53,50,46,46,65,55,61,35,65,59,66,62,57,54,59,18,95,110,130,132,257,212,222,52,41,52,51,44,46,38,39,34,63,12,10,-4,7,0,501,495,496,495,494,490,483,482,577,573,628,623,674,607,620,584,562,529,683,599,711,637,779,571,712,599]} 1. e4 {[%emt 0:00:01]} d6 {[%emt 0:00:00]} 2. d4 {[%emt 0:00:01]} Nf6 {[%emt 0:00:02]} 3. Bd3 {[%emt 0:00:02]} e5 {[%emt 0:00:01]} 4. Nf3 {[%emt 0:00:11]} Nbd7 {[%emt 0:00:04]} 5. O-O {[%emt 0:00:09]} Be7 {[%emt 0:00:04]} 6. c3 {[%emt 0:00:03]} O-O {[%emt 0:00:04]} 7. Re1 {[%emt 0:00:01]} Re8 {[%emt 0:00:08] B07: Pirc Defence: Miscellaneous Systems.} 8. Nbd2 {[%emt 0:00:07]} c6 {[%emt 0:00:04] is the legacy move (8...Bf8).} 9. a4 {[%emt 0:00:01][%cal Ba2a4,Ba4a5][%mdl 32]} Qc7 {[%emt 0:00:02] White is slightly better.} 10. Nf1 {[%emt 0:00:06]} Nf8 {[%emt 0:00:41]} 11. Ng3 {[%emt 0:00:17] [#]} g6 $146 {[%emt 0:00:16]} ({Predecessor:} 11... Ng6 12. Nf5 h6 13. dxe5 dxe5 14. Bc4 Bf8 15. Qb3 Be6 16. Bxe6 Rxe6 17. a5 Ree8 {½-½ (81) Pop,A (2285)-Calin,A (2143) Slanic Moldova 2017}) 12. a5 {[%emt 0:00:10]} Ne6 {[%emt 0:00:12]} 13. Bc4 {[%emt 0:00:10]} Rb8 {[%emt 0:00:05]} 14. Ng5 {[%emt 0:00:36]} Nxg5 {[%emt 0:00:33]} 15. Bxg5 {[%emt 0:00:01]} b5 {[%emt 0:00:18]} 16. axb6 {[%emt 0:00:02]} axb6 {[%emt 0:00:02]} 17. Qb3 {[%emt 0:00:29]} d5 {[%emt 0:00:13]} (17... Bd8 $1 $11) 18. exd5 $16 {[%emt 0:00:06]} cxd5 {[%emt 0:00:02]} 19. Bb5 {[%emt 0:00:14] White is much more active. The black rooks are badly placed.} Bd7 {[%emt 0:00:14]} (19... Nd7 $16) 20. dxe5 {[%emt 0:00:07]} Ng4 {[%emt 0:00:10]} 21. Bf4 {[%emt 0:00:22] [#]} ({Much less strong is} 21. Qxd5 $6 Bxb5 22. Bxe7 Rxe7 $16) (21. Bxe7 $18 Rxe7 22. Bxd7 (22. Qxd5 Bxb5 23. Qxb5 Nxe5 $16) 22... Qxd7 23. f4) 21... Qc5 $14 {[%emt 0:00:07]} 22. Bxd7 {[%emt 0:00:07]} Qxf2+ {[%emt 0:00:02]} 23. Kh1 {[%emt 0:00:02]} Qxf4 {[%emt 0:00:01]} 24. Bxg4 {[%emt 0:00:18]} Qxg4 {[%emt 0:00:02]} 25. Qxd5 {[%emt 0:00:01]} Rbd8 {[%emt 0:00:01] Inhibits e6.} 26. Qe4 {[%emt 0:00:04]} (26. Qb3 $14) 26... Qe6 $11 {[%emt 0:00:04]} (26... Qxe4 {simplifies} 27. Nxe4 Rd5 28. Nf6+ Bxf6 29. exf6 Rxe1+ 30. Rxe1 h5) 27. Rad1 {[%emt 0:00:03]} h5 {[%emt 0:00:02]} (27... Rxd1 {simplifies} 28. Rxd1 Bf8 29. Ne2 Qxe5 30. Qxe5 Rxe5 31. Nf4 b5) 28. Ne2 {[%emt 0:00:02][%cal Bg3e2,Be2d4,Bd4f3][%mdl 32]} Bh4 $2 {[%emt 0:00:02][%mdl 8192] [#]} 29. Qxh4 $18 {[%emt 0:00:02] White is clearly winning.} Rxd1 {[%emt 0:00:03]} 30. Rxd1 {[%emt 0:00:01]} Qxe5 {[%emt 0:00:01]} 31. Nd4 {[%emt 0:00:01]} Kg7 {[%emt 0:00:02]} 32. Qf2 {[%emt 0:00:03]} b5 {[%emt 0:00:02]} 33. Rf1 {[%emt 0:00:01]} f5 {[%emt 0:00:02]} 34. Nf3 {[%emt 0:00:02]} Qe4 {[%emt 0:00:01]} 35. Qd4+ {[%emt 0:00:02]} Kh6 {[%emt 0:00:02]} 36. Qxe4 {[%emt 0:00:01]} fxe4 {[%emt 0:00:02]} 37. Nd4 {[%emt 0:00:01]} e3 {[%emt 0:00:01]} 38. Kg1 {[%emt 0:00:02] Prevents b4.} Re5 {[%emt 0:00:01]} 39. Re1 {[%emt 0:00:03]} g5 {[%emt 0:00:02]} 40. Nc2 {[%emt 0:00:02]} e2 {[%emt 0:00:02]} 41. Nd4 {[%emt 0:00:01] Weighted Error Value: White=0.25 (precise) /Black=0.51} 1-0

[Event "4th Tata Steel India Blitz Women 2022"]
[Site "Kolkota"]
[Date "2022.12.04"]
[Round "13.4"]
[White "Ushenina, Anna"]
[Black "Dzagnidze, Nana"]
[Result "1-0"]
[ECO "E01"]
[WhiteElo "2454"]
[BlackElo "2517"]
[Annotator "TA"]
[PlyCount "87"]
[EventDate "2022.11.29"]
[EventType "tourn"]
[EventCountry "IND"]
[SourceTitle "playchess.com"]
[Source "ChessBase"]
[SourceQuality "1"]
[TimeControl "180+2"]

{[%evp 15,87,15,18,0,37,45,44,43,39,36,48,29,25,36,38,37,31,34,62,15,24,30,12,13,32,8,47,8,361,354,349,336,347,354,353,351,336,337,325,353,295,333,303,269,254,228,243,46,107,0,247,206,212,215,212,186,151,12,701,685,658,656,562,-144,-165,-188,-135,-189,-176,-133,0,0,0,0]} 1. d4 {[%emt 0:00:01]} e6 {[%emt 0:00:02]} 2. c4 {[%emt 0:00:01]} d5 {[%emt 0:00:01]} 3. Nc3 {[%emt 0:00:01]} Nf6 {[%emt 0:00:05]} 4. Nf3 {[%emt 0:00:01]} c6 {[%emt 0:00:02]} 5. g3 {[%emt 0:00:02]} Nbd7 {[%emt 0:00:03]} 6. Bg2 {[%emt 0:00:02]} dxc4 {[%emt 0:00:21]} 7. O-O {[%emt 0:00:06]} Be7 {[%emt 0:00:06]} 8. a4 {[%emt 0:00:01]} O-O {[%emt 0:00:06]} 9. a5 {[%emt 0:00:01] E01: Catalan: Early deviations.} Bb4 {[%emt 0:00:39]} 10. Qa4 $1 {[%emt 0:00:08]} Qe7 {[%emt 0:00:02]} 11. Na2 {[%emt 0:00:23] White is slightly better.} Bd6 {[%emt 0:00:01]} 12. Qxc4 {[%emt 0:00:05]} e5 {[%emt 0:00:03]} 13. Nc3 {[%emt 0:00:09]} exd4 {[%emt 0:00:19]} 14. Nxd4 {[%emt 0:00:03]} Ne5 {[%emt 0:00:02]} 15. Qb3 {[%emt 0:00:01]} a6 {[%emt 0:00:13]} 16. Rd1 {[%emt 0:00:01] [#]} Bc7 $146 {[%emt 0:00:13]} ({Predecessor:} 16... Bc5 17. Bg5 Bxd4 18. Rxd4 h6 19. Bxf6 Qxf6 20. Rf4 Qe7 21. Re4 Bf5 22. Re3 Qc7 23. Qb4 Rae8 24. Qf4 Bc8 {0-1 (50) Bounena,C-Chavez,R (2250) Thessaloniki 1988}) 17. Qc2 {[%emt 0:00:09] White is more active.} (17. f4 $14) 17... Rd8 $11 {[%emt 0:00:16]} 18. h3 {[%emt 0:00:07]} (18. Bg5 {looks sharper.} Neg4 19. h3 h6 20. Bf4) 18... h6 {[%emt 0:00:26]} 19. f4 {[%emt 0:00:18]} Nc4 {[%emt 0:00:06]} (19... Nh5 $5 {[%cal Re5c4]}) 20. e4 {[%emt 0:00:04][%cal Ob2b4,Be2e4,Be4e5][%mdl 32]} Bxa5 {[%emt 0:00:16]} 21. e5 {[%emt 0:00:02]} (21. Nce2 $5 c5 22. Qxc4 $14) 21... Nd5 {[%emt 0:00:02][%mdl 8192]} (21... Rxd4 $11 {and Black is okay.} 22. Rxd4 Bb6) 22. Nxd5 $18 {[%emt 0:00:17][%mdl 64] Discovered Attack} cxd5 {[%emt 0:00:01]} 23. b3 {[%emt 0:00:05]} Bb6 {[%emt 0:00:06]} 24. bxc4 {[%emt 0:00:04]} dxc4 {[%emt 0:00:02]} 25. Be3 {[%emt 0:00:01]} (25. Qxc4 Be6 26. Qc3 Bb3 $18) 25... Be6 {[%emt 0:00:05]} 26. Kh2 {[%emt 0:00:02]} Rab8 {[%emt 0:00:04]} 27. Rab1 {[%emt 0:00:15]} Bxd4 {[%emt 0:00:02]} 28. Bxd4 {[%emt 0:00:03]} (28. Rxd4 Qa3 $18) 28... b5 {[%emt 0:00:01]} 29. f5 {[%emt 0:00:08][%cal Bf4f5,Bf5f6,Bf6g7][%mdl 32] Prevents b4.} Bd5 {[%emt 0:00:01]} 30. f6 {[%emt 0:00:09]} Qe6 {[%emt 0:00:00]} 31. Ba7 $2 {[%emt 0:00:30]} (31. Bxd5 $18 Rxd5 32. Bc3) 31... Ra8 {[%emt 0:00:01]} (31... Rbc8 $1 $14) 32. Bd4 {[%emt 0:00:30]} (32. Be3 $16) 32... Rab8 $1 {[%emt 0:00:04]} 33. fxg7 {[%emt 0:00:02] Black must now prevent Bc3.} Bxg2 {[%emt 0:00:07]} 34. Qxg2 {[%emt 0:00:02] The board is on fire.} b4 {[%emt 0:00:01] Inhibits Bc3.} 35. Qe4 {[%emt 0:00:11]} c3 {[%emt 0:00:03][%cal Bc4c3,Bc3c2][%mdl 32] Threatens to win with ...Qa2+.} 36. Rf1 {[%emt 0:00:04]} (36. Be3 $1 $16) 36... Qc4 {[%emt 0:00:03][%mdl 8192] [#]} (36... c2 $11 37. Rbe1 (37. Qxc2 Rxd4 38. Rf2 Rbd8 $17) 37... b3) 37. e6 $1 {[%emt 0:00:02]} Qxe6 {[%emt 0:00:05]} 38. Qxe6 {[%emt 0:00:02]} (38. Be5 Rb5 39. Rbd1 Re8 $19) 38... fxe6 {[%emt 0:00:01] [#]} 39. Rf4 {[%emt 0:00:03]} (39. Rxb4 $3 $18 {[%mdl 512]} Rxb4 (39... Rbc8 40. Be3) 40. Rf8+ Rxf8 41. gxf8=Q+ Kxf8 42. Bc5+ Kf7 43. Bxb4) 39... c2 $17 {[%emt 0:00:03]} 40. Rbf1 {[%emt 0:00:02] [#] Strongly threatening Bb2.} Rxd4 {[%emt 0:00:03][%mdl 576]} 41. Rxd4 {[%emt 0:00:02]} (41. Rf8+ Kxg7 42. R8f7+ Kh8 $19) 41... b3 {[%emt 0:00:01][%cal Ob3b2] aiming for ...b2!} 42. Rc4 {[%emt 0:00:03][%cal Bd4c4,Bc4c2,Bc2c8][%mdl 32]} b2 {[%emt 0:00:04]} ({Don't play} 42... Kxg7 $6 43. Rc7+ Kg8 44. Rff7 $11) (42... Rb7 $17 {And now ...Rf7 would win.} 43. Rc1 a5 44. R4xc2 bxc2 45. Rxc2 a4 46. Rc8+ Kxg7) 43. Rxc2 $11 {[%emt 0:00:01][%cal Of1f8] Rf8+! is the strong threat.} b1=Q {[%emt 0:00:03]} (43... b1=B $2 44. Rc7 $18) 44. Rc8+ {[%emt 0:00:02][%mdl 32832] What a bad dream for Black.   Weighted Error Value: White=0.35/Black=0.24 (precise) . Loss on time!?} 1-0

[Event "4th Tata Steel India Blitz Women 2022"]
[Site "Kolkota"]
[Date "2022.12.04"]
[Round "13.5"]
[White "Harika, Dronavalli"]
[Black "Koneru, Humpy"]
[Result "1/2-1/2"]
[ECO "A15"]
[WhiteElo "2507"]
[BlackElo "2574"]
[Annotator "TA"]
[PlyCount "34"]
[EventDate "2022.11.29"]
[EventType "tourn"]
[EventCountry "IND"]
[SourceTitle "playchess.com"]
[Source "ChessBase"]
[SourceQuality "1"]
[TimeControl "180+2"]

{[%evp 9,34,17,19,5,14,15,31,0,0,0,0,0,0,-12,0,-7,0,-10,-10,-12,-7,-33,0,-12,0,-38,0]} 1. c4 {[%emt 0:00:01]} Nf6 {[%emt 0:00:22]} 2. g3 {[%emt 0:00:02]} e6 {[%emt 0:00:09]} 3. Bg2 {[%emt 0:00:01]} Be7 {[%emt 0:00:07]} 4. Nf3 {[%emt 0:00:02][%cal Bg1f3,Bf3e5,Be5d3][%mdl 32]} b6 {[%emt 0:00:06]} 5. Ne5 {[%emt 0:00:20]} c6 {[%emt 0:00:10]} 6. O-O {[%emt 0:00:04] A15: English Opening: 1...Nf6.} O-O {[%emt 0:00:09]} 7. d4 {[%emt 0:00:02]} Bb7 {[%emt 0:00:17]} 8. Nc3 {[%emt 0:00:02] White is slightly better.} d6 {[%emt 0:00:06]} 9. Nd3 {[%emt 0:00:11]} d5 {[%emt 0:00:05]} 10. cxd5 {[%emt 0:00:05]} cxd5 {[%emt 0:00:04]} 11. Bf4 {[%emt 0:00:01]} Nc6 {[%emt 0:00:27]} 12. Ne5 {[%emt 0:00:02] [#]} Nh5 $146 {[%emt 0:00:24]} ({Predecessor:} 12... Na5 13. Rc1 Rc8 14. Rc2 Ba6 15. a4 Nd7 16. Nd3 Nc6 17. Be3 Bxd3 18. exd3 Nb4 {0-1 (57) Csala,I (2267)-Chernyshov,K (2549) Harkany 2002}) 13. Nxc6 {[%emt 0:00:07]} Bxc6 {[%emt 0:00:02]} 14. Bd2 {[%emt 0:00:20]} Nf6 {[%emt 0:00:03]} 15. Bf4 {[%emt 0:00:02]} Nh5 {[%emt 0:00:02]} 16. Bd2 {[%emt 0:00:05]} Nf6 {[%emt 0:00:02]} 17. Bf4 {[%emt 0:00:01]} Nh5 {[%emt 0:00:01] An uneventful encounter.   Weighted Error Value: White=0.08 (flawless) /Black=0.07 (flawless)} 1/2-1/2

[Event "4th Tata Steel India Blitz Women 2022"]
[Site "Kolkota"]
[Date "2022.12.04"]
[Round "14.1"]
[White "Koneru, Humpy"]
[Black "Savitha Shri B"]
[Result "0-1"]
[ECO "E60"]
[WhiteElo "2574"]
[BlackElo "2411"]
[Annotator "TA"]
[PlyCount "68"]
[EventDate "2022.11.29"]
[EventType "tourn"]
[EventCountry "IND"]
[SourceTitle "playchess.com"]
[Source "ChessBase"]
[SourceQuality "1"]
[TimeControl "180+2"]

{[%evp 16,68,29,24,55,49,43,19,69,47,52,43,58,43,89,73,98,83,85,66,71,54,78,63,72,82,86,9,52,59,55,70,56,60,51,40,43,37,41,-63,-57,-70,7,-242,-252,-255,-252,-247,-228,-242,-236,-237,-230,-264,-262]} 1. Nf3 {[%emt 0:00:02]} Nf6 {[%emt 0:00:04]} 2. b3 {[%emt 0:00:03]} g6 {[%emt 0:00:02]} 3. Bb2 {[%emt 0:00:03]} Bg7 {[%emt 0:00:01]} 4. g3 {[%emt 0:00:15]} d6 {[%emt 0:00:02]} 5. d4 {[%emt 0:00:05]} O-O {[%emt 0:00:02]} 6. Bg2 {[%emt 0:00:07]} Nbd7 {[%emt 0:00:41]} 7. c4 {[%emt 0:00:02]} c6 {[%emt 0:00:11]} 8. O-O {[%emt 0:00:04]} Qc7 {[%emt 0:00:00]} 9. Nc3 {[%emt 0:00:14]} Rd8 {[%emt 0:00:02] E60: King's Indian: Unusual lines and Fianchetto Variation without Nc3.} 10. e4 {[%emt 0:00:09]} e5 {[%emt 0:00:05]} 11. Qc2 {[%emt 0:00:11]} a5 {[%emt 0:00:09]} (11... b5 $11) 12. Rad1 {[%emt 0:00:03]} exd4 {[%emt 0:00:03]} 13. Nxd4 {[%emt 0:00:03]} Nc5 {[%emt 0:00:01]} 14. h3 {[%emt 0:00:07]} Ne6 {[%emt 0:00:37]} (14... Nfd7 $14) 15. Nde2 {[%emt 0:00:16] [#]} b6 $146 {[%emt 0:00:53]} ({Predecessor:} 15... Nc5 16. Kh2 h5 17. Rd2 h4 18. Rfd1 hxg3+ 19. fxg3 Ne8 20. Nf4 Be5 21. Nce2 Be6 {0-1 (47) Ianov,V (2279)-Oro,L (2255) Chess.com INT 2022}) 16. f4 {[%emt 0:00:42]} Nc5 {[%emt 0:00:01]} 17. Kh2 {[%emt 0:00:31]} Bb7 {[%emt 0:00:09]} 18. Nd4 {[%emt 0:00:14]} Re8 {[%emt 0:00:06]} 19. Rfe1 {[%emt 0:00:12]} Rad8 {[%emt 0:00:02]} 20. a3 {[%emt 0:00:01]} Ne6 {[%emt 0:00:07]} 21. Nf3 {[%emt 0:00:10]} (21. Na4 $16) 21... Nc5 {[%emt 0:00:06]} 22. Nd2 {[%emt 0:00:08]} Qb8 {[%emt 0:00:05]} 23. b4 {[%emt 0:00:01]} axb4 {[%emt 0:00:01]} 24. axb4 Na6 {[%emt 0:00:01]} 25. b5 {[%emt 0:00:04]} cxb5 {[%emt 0:00:02]} 26. Nxb5 {[%emt 0:00:02]} (26. cxb5 {simplifies} Nc5 27. Na4 Nxa4 28. Qxa4 Re6 29. Nb3) 26... Nc5 27. e5 {[%emt 0:00:02]} (27. Qb1 $14) 27... dxe5 $15 {[%emt 0:00:05]} 28. Bxe5 {[%emt 0:00:01]} Qc8 {[%emt 0:00:09]} ({Better is} 28... Nd3 $1 $15 29. Bxb8 Nxe1 30. Rxe1 Rxe1) 29. Nd6 $2 {[%emt 0:00:03] [#] White does not recover from this.} (29. Bxb7 $11 Nxb7 30. Nf3) 29... Rxd6 $1 $19 {[%emt 0:00:01][%mdl 512] The board is on fire.} 30. Bxd6 {[%emt 0:00:03]} Bxg2 {[%emt 0:00:01]} 31. Kxg2 {[%emt 0:00:01] And now Nf3 would win.} Qc6+ {[%emt 0:00:01]} 32. Nf3 {[%emt 0:00:04]} Rxe1 {[%emt 0:00:02][%mdl 64] Deflection} 33. Rxe1 {[%emt 0:00:02] [#] Strongly threatening Bxc5.} Qxd6 {[%emt 0:00:01]} 34. Qe2 Nfe4 {[%emt 0:00:05] Weighted Error Value: White=0.41/Black=0.13 (very precise)} 0-1

[Event "4th Tata Steel India Blitz Women 2022"]
[Site "Kolkota"]
[Date "2022.12.04"]
[Round "14.2"]
[White "Dzagnidze, Nana"]
[Black "Harika, Dronavalli"]
[Result "1-0"]
[ECO "A41"]
[WhiteElo "2517"]
[BlackElo "2507"]
[Annotator "TA"]
[PlyCount "53"]
[EventDate "2022.11.29"]
[EventType "tourn"]
[EventCountry "IND"]
[SourceTitle "playchess.com"]
[Source "ChessBase"]
[SourceQuality "1"]
[TimeControl "180+2"]

{[%evp 14,53,39,25,40,-5,22,24,16,18,11,-20,67,18,157,107,139,95,206,96,94,82,449,437,437,434,671,661,1368,1317,1543,1049,1029,1028,1025,1018,29980,29978,29997,29998,29998,29999]} 1. d4 {[%emt 0:00:01]} g6 {[%emt 0:00:01]} 2. g3 {[%emt 0:00:05]} Bg7 {[%emt 0:00:01]} 3. Bg2 {[%emt 0:00:00]} d6 {[%emt 0:00:10]} 4. c4 {[%emt 0:00:06]} Nd7 {[%emt 0:00:03]} 5. Nc3 {[%emt 0:00:01]} e5 {[%emt 0:00:01]} 6. Nf3 {[%emt 0:00:04]} Ne7 {[%emt 0:00:02]} 7. O-O {[%emt 0:00:06]} O-O {[%emt 0:00:02]} 8. e3 {[%emt 0:00:19]} f5 {[%emt 0:00:41] [#] A41: 1 d4 d6: Tartakower System and Modern Defence.} 9. c5 $146 {[%emt 0:00:51]} ({Predecessor:} 9. b4 a5 10. bxa5 e4 11. Nd2 Rxa5 12. a4 Nf6 13. Nb3 Ra8 14. a5 Be6 15. Ra4 c6 16. Ba3 {1-0 (38) Riazantsev,A (2646)-Efanov,N (2399) Minsk 2015}) 9... h6 {[%emt 0:00:08] Prevents Ng5.} (9... e4 $5 {[%cal Re4f3]} 10. cxd6 cxd6 $11) 10. cxd6 {[%emt 0:00:06]} cxd6 {[%emt 0:00:01] White has an edge.} 11. dxe5 {[%emt 0:00:07]} dxe5 {[%emt 0:00:07]} 12. b3 {[%emt 0:00:08]} Kh7 {[%emt 0:00:19]} (12... e4 $1 $11 13. Nd4 Ne5) 13. Ba3 {[%emt 0:00:04]} (13. e4 $14) 13... Bf6 {[%emt 0:00:20]} (13... e4 $1 $11 14. Nd4 Ne5) 14. Rc1 {[%emt 0:00:08] White is much more active.} ({White should try} 14. e4) 14... Qa5 {[%emt 0:00:29]} 15. Qd6 {[%emt 0:00:43] And now Rfd1 would win.} Rf7 {[%emt 0:00:28] [#]} (15... e4 $16) 16. Rfd1 {[%emt 0:00:14]} (16. e4 $1 $18 {has better winning chances.}) 16... e4 $16 {[%emt 0:00:12]} 17. Nd4 {[%emt 0:00:15]} Be5 $2 {[%emt 0:00:09][%mdl 8192] Loses the game.} (17... Ne5 $16) 18. Qe6 $1 $18 {[%emt 0:00:04][%csl LRe7,LRf7]} Rg7 {[%emt 0:00:17]} 19. Bxe7 {[%emt 0:00:02]} Bxd4 {[%emt 0:00:01]} (19... Nf6 $142) 20. exd4 {[%emt 0:00:07] [#] Threatens to win with Nd5.} Nc5 {[%emt 0:00:04]} 21. Qe5 {[%emt 0:00:01]} (21. Bxc5 $2 {perishes.} Bxe6 22. b4 Qa3 $19) 21... Nxb3 {[%emt 0:00:01]} 22. axb3 {[%emt 0:00:03]} Qxe5 {[%emt 0:00:01]} 23. dxe5 {[%emt 0:00:01]} Rxe7 {[%emt 0:00:01]} 24. Nd5 {[%emt 0:00:03]} Rxe5 {[%emt 0:00:05]} 25. Rc7+ {[%emt 0:00:01] White mates.} Kg8 {[%emt 0:00:02]} 26. Nf6+ {[%emt 0:00:02]} Kf8 {[%emt 0:00:01]} 27. Rd8+ {[%emt 0:00:01] Weighted Error Value: White=0.28 (precise) /Black=1.20} 1-0